[Event "Vojvodina Open 2024-A 2024"]
[Site "Novi Sad"]
[Date "2024.06.25"]
[Round "2.6"]
[White "Tippa, Aswath Srisai"]
[Black "Sedlak, Nikola"]
[Result "1/2-1/2"]
[ECO "B56"]
[WhiteElo "1647"]
[BlackElo "2426"]
[Annotator "RC"]
[PlyCount "117"]
[EventDate "2024.06.03"]
[EventType "swiss"]
[EventCountry "SRB"]
[SourceTitle "playchess.com"]
[Source "ChessBase"]
[SourceQuality "1"]
[TimeControl "40/5400+30:900+30"]

1. e4 {[%emt 0:00:47]} c5 {[%emt 0:05:07]} 2. Nf3 {[%emt 0:00:25]} d6 {[%emt 0:00:08]} 3. d4 {[%emt 0:00:08]} cxd4 {[%emt 0:00:10]} 4. Nxd4 {[%emt 0:00:11]} Nf6 {[%emt 0:00:13]} 5. Nc3 {[%emt 0:00:06]} Bd7 {[%emt 0:00:14]} 6. f3 {[%emt 0:00:33]} Nc6 {[%emt 0:01:05]} 7. Be3 {[%emt 0:00:13]} h5 {[%emt 0:00:35]} 8. Qd2 {[%emt 0:01:08]} a6 {[%emt 0:01:36]} 9. O-O-O {[%emt 0:00:35]} e6 {[%emt 0:00:24]} 10. Kb1 {[%emt 0:02:26]} Be7 {[%emt 0:01:31]} 11. Bg5 {[%emt 0:05:55]} b5 {[%emt 0:05:49]} 12. Nxc6 {[%emt 0:02:22]} Bxc6 {[%emt 0:00:06]} 13. h4 {[%emt 0:03:31]} Rc8 {[%emt 0:12:23]} 14. Bd3 {[%emt 0:03:30]} Qb6 {[%emt 0:06:12]} 15. Ne2 {[%emt 0:02:51]} e5 {[%emt 0:06:20]} 16. Ng3 {[%emt 0:01:28]} g6 {[%emt 0:00:46]} 17. Rhf1 {[%emt 0:03:42]} Qa7 {[%emt 0:12:42]} 18. f4 {[%emt 0:07:13]} Ng4 {[%emt 0:01:07]} 19. Bxe7 {[%emt 0:00:11]} Qxe7 {[%emt 0:00:13]} 20. Be2 {[%emt 0:00:24]} Nf6 {[%emt 0:05:39]} 21. Qe3 {[%emt 0:11:33]} exf4 {[%emt 0:02:26]} 22. Rxf4 {[%emt 0:10:23]} Nd7 {[%emt 0:03:35]} 23. Qd4 {[%emt 0:02:36]} Qe5 {[%emt 0:07:20]} 24. Qxd6 {[%emt 0:00:52]} Qxd6 {[%emt 0:00:20]} 25. Rxd6 {[%emt 0:00:08]} Ke7 {[%emt 0:00:33]} 26. Rd1 {[%emt 0:02:28]} Rhd8 {[%emt 0:01:05]} 27. c3 {[%emt 0:00:47]} Nc5 {[%emt 0:01:17]} 28. Rdf1 {[%emt 0:05:03]} Be8 {[%emt 0:00:38]} 29. R4f2 {[%emt 0:01:35]} Rd6 {[%emt 0:01:53]} 30. Bd1 {[%emt 0:07:28]} Nd3 {[%emt 0:02:12]} 31. Rd2 {[%emt 0:00:51]} Rcd8 {[%emt 0:03:38]} 32. Bxh5 {[%emt 0:08:36]} b4 {[%emt 0:01:32]} 33. Be2 {[%emt 0:01:23]} bxc3 {[%emt 0:00:30]} 34. bxc3 {[%emt 0:03:51]} Rb8+ {[%emt 0:00:06]} 35. Ka1 {[%emt 0:00:08]} Ne1 {[%emt 0:00:38]} 36. Rb2 {[%emt 0:00:06]} Rxb2 {[%emt 0:00:56]} 37. Kxb2 {[%emt 0:00:07]} Nxg2 {[%emt 0:01:04]} 38. h5 {[%emt 0:01:20]} Ne3 {[%emt 0:01:17]} 39. Rf3 {[%emt 0:03:14]} Ng4 {[%emt 0:00:34]} 40. Rf4 {[%emt 0:00:00]} Ne5 {[%emt 0:00:00]} 41. Rh4 {[%emt 0:04:23]} Kf8 {[%emt 0:03:56]} 42. Rh1 {[%emt 0:04:35]} Kg7 {[%emt 0:00:08]} 43. Rd1 {[%emt 0:01:36]} Rb6+ {[%emt 0:00:15]} 44. Kc1 {[%emt 0:00:10]} Bb5 {[%emt 0:01:56]} 45. Bxb5 {[%emt 0:00:48]} axb5 {[%emt 0:00:05]} 46. Rd5 {[%emt 0:00:46]} Nc4 {[%emt 0:00:11]} 47. hxg6 {[%emt 0:07:56]} fxg6 {[%emt 0:00:16]} 48. e5 {[%emt 0:00:54]} Kf7 {[%emt 0:01:39]} 49. Ne2 {[%emt 0:02:07]} Re6 {[%emt 0:00:06]} 50. Rxb5 {[%emt 0:00:08]} Rxe5 {[%emt 0:00:07]} 51. Rxe5 {[%emt 0:00:11]} Nxe5 {[%emt 0:00:06]} 52. Kc2 {[%emt 0:00:32]} Ke6 {[%emt 0:00:05]} 53. Kb3 {[%emt 0:00:05]} Kd6 {[%emt 0:00:54]} 54. Kb4 {[%emt 0:00:21]} Kc6 {[%emt 0:00:05]} 55. c4 {[%emt 0:00:31]} Nd3+ {[%emt 0:00:46]} 56. Kc3 {[%emt 0:00:08]} Nc5 {[%emt 0:00:08]} 57. Kd4 {[%emt 0:00:10]} g5 {[%emt 0:00:19]} 58. Ke5 {[%emt 0:01:06]} Na4 {[%emt 0:00:13]} 59. Ke4 {[%emt 0:08:25]} 1/2-1/2

[Event "Vojvodina Open 2024-A 2024"]
[Site "Novi Sad"]
[Date "2024.06.25"]
[Round "2.8"]
[White "Harsh Suresh"]
[Black "Sahbudak, Baris Cinar"]
[Result "1-0"]
[ECO "B27"]
[WhiteElo "2426"]
[BlackElo "1941"]
[Annotator "RC"]
[PlyCount "83"]
[EventDate "2024.06.03"]
[EventType "swiss"]
[EventCountry "SRB"]
[SourceTitle "playchess.com"]
[Source "ChessBase"]
[SourceQuality "1"]
[TimeControl "40/5400+30:900+30"]

1. e4 {[%emt 0:00:19]} c5 {[%emt 0:00:21]} 2. Nf3 {[%emt 0:00:13]} g6 {[%emt 0:00:18]} 3. Bc4 {[%emt 0:00:50]} Bg7 {[%emt 0:01:11]} 4. c3 {[%emt 0:00:10]} e6 {[%emt 0:05:01]} 5. d4 {[%emt 0:00:14]} cxd4 {[%emt 0:05:15]} 6. Bb3 {[%emt 0:00:08]} d5 {[%emt 0:06:02]} 7. exd5 {[%emt 0:00:08]} exd5 {[%emt 0:01:05]} 8. Nxd4 {[%emt 0:00:08]} Nc6 {[%emt 0:01:52]} 9. Be3 {[%emt 0:12:02]} Nge7 {[%emt 0:03:22]} 10. O-O {[%emt 0:00:13]} O-O {[%emt 0:00:42]} 11. Na3 {[%emt 0:01:27]} Be6 {[%emt 0:04:42]} 12. Nac2 {[%emt 0:02:44]} Qd7 {[%emt 0:05:26]} 13. Qd2 {[%emt 0:00:48]} Ne5 {[%emt 0:08:16]} 14. Bh6 {[%emt 0:02:33]} Nc4 {[%emt 0:26:51]} 15. Bxc4 {[%emt 0:03:45]} dxc4 {[%emt 0:00:38]} 16. Bxg7 {[%emt 0:04:44]} Kxg7 {[%emt 0:01:56]} 17. Rfe1 {[%emt 0:07:15]} Nd5 {[%emt 0:06:57]} 18. Nxe6+ {[%emt 0:08:39]} fxe6 {[%emt 0:00:15]} 19. Qd4+ {[%emt 0:00:07]} Rf6 {[%emt 0:06:30]} 20. Ne3 {[%emt 0:02:57]} Nb6 {[%emt 0:08:38]} 21. Qxd7+ {[%emt 0:00:56]} Nxd7 {[%emt 0:00:07]} 22. Nxc4 {[%emt 0:00:07]} Kf8 {[%emt 0:02:12]} 23. Rad1 {[%emt 0:02:07]} Ke7 {[%emt 0:01:26]} 24. Rd2 {[%emt 0:00:30]} Rc8 {[%emt 0:01:29]} 25. Nd6 {[%emt 0:01:35]} Rb8 {[%emt 0:00:52]} 26. Nb5 {[%emt 0:01:45]} a6 {[%emt 0:00:26]} 27. Nc7 {[%emt 0:01:16]} Nb6 {[%emt 0:01:17]} 28. Rde2 {[%emt 0:00:17]} Kd6 {[%emt 0:00:41]} 29. Nxe6 {[%emt 0:00:09]} Re8 {[%emt 0:00:39]} 30. Ng5 {[%emt 0:00:25]} Rxe2 {[%emt 0:00:27]} 31. Rxe2 {[%emt 0:00:02]} Rf5 {[%emt 0:00:24]} 32. h4 {[%emt 0:04:19]} h6 {[%emt 0:00:28]} 33. Re6+ {[%emt 0:00:37]} Kc7 {[%emt 0:00:16]} 34. Ne4 {[%emt 0:00:08]} Rf4 {[%emt 0:00:22]} 35. g3 {[%emt 0:00:11]} Rf5 {[%emt 0:00:48]} 36. Nd6 {[%emt 0:01:06]} Kd7 {[%emt 0:00:42]} 37. Rxg6 {[%emt 0:00:18]} Rd5 {[%emt 0:00:15]} 38. Ne4 {[%emt 0:00:21]} Rd1+ {[%emt 0:00:21]} 39. Kg2 {[%emt 0:00:03]} Nd5 {[%emt 0:00:10]} 40. Rxh6 {[%emt 0:00:00]} Ke7 {[%emt 0:00:00]} 41. Rd6 {[%emt 0:01:13]} b5 {[%emt 0:00:47]} 42. h5 {[%emt 0:00:39]} 1-0

[Event "Vojvodina Open 2024-A 2024"]
[Site "Novi Sad"]
[Date "2024.06.25"]
[Round "2.9"]
[White "Ljepic, Andrej"]
[Black "Anakok, Deniz"]
[Result "1-0"]
[ECO "D00"]
[WhiteElo "2267"]
[BlackElo "1819"]
[Annotator "RC"]
[PlyCount "101"]
[EventDate "2024.06.03"]
[EventType "swiss"]
[EventCountry "SRB"]
[SourceTitle "playchess.com"]
[Source "ChessBase"]
[SourceQuality "1"]
[TimeControl "40/5400+30:900+30"]

1. d4 {[%emt 0:01:01]} Nf6 {[%emt 0:00:12]} 2. Bg5 {[%emt 0:00:05]} d5 {[%emt 0:00:15]} 3. Bxf6 {[%emt 0:00:08]} exf6 {[%emt 0:00:08]} 4. e3 {[%emt 0:00:05]} c6 {[%emt 0:00:43]} 5. c4 {[%emt 0:00:09]} dxc4 {[%emt 0:17:22]} 6. Bxc4 {[%emt 0:00:24]} Bd6 {[%emt 0:00:51]} 7. Nc3 {[%emt 0:00:11]} O-O {[%emt 0:00:46]} 8. Nf3 {[%emt 0:00:28]} Nd7 {[%emt 0:02:18]} 9. O-O {[%emt 0:00:40]} f5 {[%emt 0:03:21]} 10. a4 {[%emt 0:02:20]} Nf6 {[%emt 0:03:27]} 11. d5 {[%emt 0:01:51]} cxd5 {[%emt 0:07:52]} 12. Nxd5 {[%emt 0:00:11]} Nxd5 {[%emt 0:00:28]} 13. Bxd5 {[%emt 0:00:14]} Qe7 {[%emt 0:12:14]} 14. Qb3 {[%emt 0:02:02]} Be6 {[%emt 0:16:19]} 15. Rfd1 {[%emt 0:00:21]} Kh8 {[%emt 0:02:25]} 16. Qxb7 {[%emt 0:03:12]} Qxb7 {[%emt 0:05:42]} 17. Bxb7 {[%emt 0:00:07]} Rab8 {[%emt 0:00:10]} 18. Rxd6 {[%emt 0:11:16]} Rxb7 {[%emt 0:00:06]} 19. Nd4 {[%emt 0:00:37]} Rxb2 {[%emt 0:01:25]} 20. Nxe6 {[%emt 0:00:43]} fxe6 {[%emt 0:00:02]} 21. Rxe6 {[%emt 0:00:01]} h6 {[%emt 0:00:58]} 22. g3 {[%emt 0:02:04]} g5 {[%emt 0:12:35]} 23. Rxh6+ {[%emt 0:01:17]} Kg7 {[%emt 0:00:15]} 24. Ra6 {[%emt 0:00:49]} f4 {[%emt 0:00:18]} 25. Rxa7+ {[%emt 0:00:47]} Kg6 {[%emt 0:00:08]} 26. exf4 {[%emt 0:04:27]} gxf4 {[%emt 0:00:14]} 27. g4 {[%emt 0:02:25]} Kg5 {[%emt 0:05:06]} 28. h3 {[%emt 0:01:39]} f3 {[%emt 0:01:03]} 29. Ra5+ {[%emt 0:01:36]} Kg6 {[%emt 0:05:49]} 30. Rb5 {[%emt 0:00:45]} Rc2 {[%emt 0:00:53]} 31. Rd1 {[%emt 0:01:00]} Rf6 {[%emt 0:01:05]} 32. a5 {[%emt 0:00:08]} Ra2 {[%emt 0:00:17]} 33. Rb6 {[%emt 0:00:19]} Rxa5 {[%emt 0:00:17]} 34. Rxf6+ {[%emt 0:00:05]} Kxf6 {[%emt 0:00:09]} 35. Rd3 {[%emt 0:00:07]} Kg5 {[%emt 0:00:56]} 36. Rxf3 {[%emt 0:00:06]} Ra2 {[%emt 0:00:14]} 37. Rf5+ {[%emt 0:00:16]} Kg6 {[%emt 0:00:07]} 38. Kg2 {[%emt 0:00:07]} Ra3 {[%emt 0:00:11]} 39. h4 {[%emt 0:00:14]} Kh6 {[%emt 0:00:32]} 40. Rf6+ {[%emt 0:00:00]} Kg7 {[%emt 0:00:00]} 41. g5 {[%emt 0:00:10]} Ra4 {[%emt 0:00:31]} 42. Kg3 {[%emt 0:00:08]} Ra3+ {[%emt 0:00:13]} 43. Kg4 {[%emt 0:00:05]} Ra4+ {[%emt 0:00:26]} 44. f4 {[%emt 0:00:05]} Rb4 {[%emt 0:00:16]} 45. h5 {[%emt 0:00:04]} Rc4 {[%emt 0:00:27]} 46. h6+ {[%emt 0:00:04]} Kh7 {[%emt 0:00:17]} 47. Rf7+ {[%emt 0:00:05]} Kg8 {[%emt 0:00:08]} 48. g6 {[%emt 0:00:17]} Rc8 {[%emt 0:00:19]} 49. h7+ {[%emt 0:00:11]} Kh8 {[%emt 0:00:07]} 50. g7+ {[%emt 0:00:06]} Kxh7 {[%emt 0:00:06]} 51. Rf8 {[%emt 0:00:04]} 1-0

[Event "Vojvodina Open 2024-A 2024"]
[Site "Novi Sad"]
[Date "2024.06.25"]
[Round "2.10"]
[White "Pasa, Ahmet"]
[Black "Drazic, Sinisa"]
[Result "0-1"]
[ECO "B12"]
[WhiteElo "2056"]
[BlackElo "2263"]
[Annotator "RC"]
[PlyCount "64"]
[EventDate "2024.06.03"]
[EventType "swiss"]
[EventCountry "SRB"]
[SourceTitle "playchess.com"]
[Source "ChessBase"]
[SourceQuality "1"]
[TimeControl "40/5400+30:900+30"]

1. e4 {[%emt 0:00:03]} c6 {[%emt 0:03:48]} 2. d4 {[%emt 0:00:22]} d5 {[%emt 0:00:02]} 3. e5 {[%emt 0:00:11]} Bf5 {[%emt 0:00:02]} 4. Nf3 {[%emt 0:00:36]} e6 {[%emt 0:00:02]} 5. Be2 {[%emt 0:01:29]} Nd7 {[%emt 0:00:24]} 6. O-O {[%emt 0:00:49]} h6 {[%emt 0:00:19]} 7. Ne1 {[%emt 0:17:19]} Ne7 {[%emt 0:00:48]} 8. f4 {[%emt 0:26:47]} Qb6 {[%emt 0:03:58]} 9. a4 {[%emt 0:07:40]} a6 {[%emt 0:06:32]} 10. a5 {[%emt 0:00:33]} Qa7 {[%emt 0:00:01]} 11. c3 {[%emt 0:04:59]} c5 {[%emt 0:02:23]} 12. Be3 {[%emt 0:00:16]} Nc6 {[%emt 0:00:08]} 13. Nf3 {[%emt 0:02:45]} cxd4 {[%emt 0:00:42]} 14. Nxd4 {[%emt 0:04:47]} Bc5 {[%emt 0:03:28]} 15. Kh1 {[%emt 0:01:26]} O-O {[%emt 0:03:53]} 16. Nxf5 {[%emt 0:11:09]} Bxe3 {[%emt 0:00:06]} 17. Nxe3 {[%emt 0:00:13]} Qxe3 {[%emt 0:00:02]} 18. Rf3 {[%emt 0:00:23]} Qc5 {[%emt 0:03:06]} 19. Rg3 {[%emt 0:02:44]} f6 {[%emt 0:00:12]} 20. exf6 {[%emt 0:07:46]} Nxf6 {[%emt 0:00:21]} 21. Nd2 {[%emt 0:01:24]} Rad8 {[%emt 0:06:41]} 22. b4 {[%emt 0:04:53]} Qa7 {[%emt 0:00:34]} 23. b5 {[%emt 0:01:51]} axb5 {[%emt 0:00:37]} 24. Bxb5 {[%emt 0:00:01]} Nxa5 {[%emt 0:03:02]} 25. Qe2 {[%emt 0:01:42]} Qb6 {[%emt 0:00:05]} 26. Bd3 {[%emt 0:00:38]} Ra8 {[%emt 0:05:26]} 27. Re3 {[%emt 0:00:42]} Nc4 {[%emt 0:00:06]} 28. Re1 {[%emt 0:00:29]} Nxe3 {[%emt 0:00:07]} 29. Qxe3 {[%emt 0:00:08]} Qxe3 {[%emt 0:00:08]} 30. Rxe3 {[%emt 0:00:04]} Ra1+ {[%emt 0:00:05]} 31. Nf1 {[%emt 0:00:38]} Ne4 {[%emt 0:00:08]} 32. Kg1 {[%emt 0:00:16]} Rxf4 {[%emt 0:00:15]} 0-1

[Event "Vojvodina Open 2024-A 2024"]
[Site "Novi Sad"]
[Date "2024.06.25"]
[Round "2.11"]
[White "Ivanov, Mikhail M"]
[Black "Yalcinkaya, Efe"]
[Result "1-0"]
[ECO "A13"]
[WhiteElo "2248"]
[BlackElo "2070"]
[Annotator "ChessBase"]
[PlyCount "73"]
[EventDate "2024.06.03"]
[EventType "swiss"]
[EventCountry "SRB"]
[SourceTitle "playchess.com"]
[Source "ChessBase"]
[SourceQuality "1"]
[TimeControl "40/5400+30:900+30"]

1. Nf3 {[%emt 0:00:02]} Nf6 {[%emt 0:00:08]} 2. c4 {[%emt 0:00:18]} e6 {[%emt 0:00:13]} 3. g3 {[%emt 0:00:34]} a6 {[%emt 0:00:22]} 4. Nc3 {[%emt 0:01:43]} d5 {[%emt 0:00:07]} 5. cxd5 {[%emt 0:00:56]} exd5 {[%emt 0:00:05]} 6. d4 {[%emt 0:00:03]} Be7 {[%emt 0:00:14]} 7. Bg2 {[%emt 0:00:07]} c6 {[%emt 0:00:16]} 8. O-O {[%emt 0:00:11]} O-O {[%emt 0:00:05]} 9. Bf4 {[%emt 0:03:06]} Re8 {[%emt 0:01:59]} 10. Qb3 {[%emt 0:01:11]} Nbd7 {[%emt 0:02:30]} 11. Rad1 {[%emt 0:00:33]} Nb6 {[%emt 0:06:40]} 12. Rfe1 {[%emt 0:02:21]} Bf5 {[%emt 0:01:27]} 13. Ne5 {[%emt 0:00:34]} Ra7 {[%emt 0:02:21]} 14. h3 {[%emt 0:01:42]} a5 {[%emt 0:07:01]} 15. a4 {[%emt 0:02:43]} h6 {[%emt 0:07:17]} 16. g4 {[%emt 0:00:54]} Be6 {[%emt 0:00:05]} 17. Bg3 {[%emt 0:03:06]} Bb4 {[%emt 0:08:34]} 18. Nd3 {[%emt 0:02:40]} Qe7 {[%emt 0:13:13]} 19. Qc2 {[%emt 0:03:52]} Ne4 {[%emt 0:12:02]} 20. Bh2 {[%emt 0:08:50]} Bxc3 {[%emt 0:02:47]} 21. bxc3 {[%emt 0:00:07]} Nc4 {[%emt 0:01:40]} 22. Ra1 {[%emt 0:03:28]} h5 {[%emt 0:03:25]} 23. f3 {[%emt 0:02:18]} hxg4 {[%emt 0:04:17]} 24. hxg4 {[%emt 0:02:06]} Ned6 {[%emt 0:00:05]} 25. Qc1 {[%emt 0:03:31]} Bd7 {[%emt 0:05:07]} 26. Qf4 {[%emt 0:04:02]} g5 {[%emt 0:01:38]} 27. Qc1 {[%emt 0:02:52]} Raa8 {[%emt 0:11:28]} 28. e4 {[%emt 0:06:45]} dxe4 {[%emt 0:02:03]} 29. fxe4 {[%emt 0:00:15]} Bxg4 {[%emt 0:00:26]} 30. Nf2 {[%emt 0:04:54]} f5 {[%emt 0:03:14]} 31. Bf1 {[%emt 0:18:11]} b5 {[%emt 0:01:51]} 32. exf5 {[%emt 0:01:15]} Qxe1 {[%emt 0:01:54]} 33. Qxg5+ {[%emt 0:00:29]} Kf8 {[%emt 0:00:12]} 34. Qh6+ {[%emt 0:04:03]} Kf7 {[%emt 0:00:32]} 35. Qg6+ {[%emt 0:00:34]} Kf8 {[%emt 0:00:33]} 36. Rxe1 {[%emt 0:00:08]} Rxe1 {[%emt 0:00:12]} 37. Bxd6+ {[%emt 0:00:06]} 1-0

[Event "Vojvodina Open 2024-A 2024"]
[Site "Novi Sad"]
[Date "2024.06.25"]
[Round "2.12"]
[White "Arvind Ramnath Iyer"]
[Black "Pantelic, Sasa"]
[Result "1/2-1/2"]
[ECO "B70"]
[WhiteElo "1872"]
[BlackElo "2237"]
[Annotator "RC"]
[PlyCount "29"]
[EventDate "2024.06.03"]
[EventType "swiss"]
[EventCountry "SRB"]
[SourceTitle "playchess.com"]
[Source "ChessBase"]
[SourceQuality "1"]
[TimeControl "40/5400+30:900+30"]

1. e4 {[%emt 0:00:09]} c5 {[%emt 0:00:32]} 2. Nf3 {[%emt 0:00:08]} d6 {[%emt 0:00:07]} 3. d4 {[%emt 0:00:05]} cxd4 {[%emt 0:00:08]} 4. Nxd4 {[%emt 0:00:05]} Nf6 {[%emt 0:00:10]} 5. Nc3 {[%emt 0:00:04]} g6 {[%emt 0:00:23]} 6. Be2 {[%emt 0:00:08]} Bg7 {[%emt 0:00:08]} 7. O-O {[%emt 0:00:08]} O-O {[%emt 0:00:12]} 8. Bg5 {[%emt 0:00:03]} Nc6 {[%emt 0:00:14]} 9. Nb3 {[%emt 0:00:04]} a5 {[%emt 0:00:38]} 10. a4 {[%emt 0:00:06]} Be6 {[%emt 0:00:06]} 11. Kh1 {[%emt 0:00:05]} Rc8 {[%emt 0:02:56]} 12. f4 {[%emt 0:00:38]} Nb4 {[%emt 0:02:55]} 13. f5 {[%emt 0:08:19]} Bc4 {[%emt 0:05:34]} 14. Bxc4 {[%emt 0:05:00]} Rxc4 {[%emt 0:00:10]} 15. Qe2 {[%emt 0:00:50]} 1/2-1/2

[Event "Vojvodina Open 2024-A 2024"]
[Site "Novi Sad"]
[Date "2024.06.25"]
[Round "2.13"]
[White "Pranav Pradeep Nair"]
[Black "Kushagra Mohan"]
[Result "0-1"]
[ECO "C45"]
[WhiteElo "1818"]
[BlackElo "2367"]
[Annotator "RC"]
[PlyCount "76"]
[EventDate "2024.06.03"]
[EventType "swiss"]
[EventCountry "SRB"]
[SourceTitle "playchess.com"]
[Source "ChessBase"]
[SourceQuality "1"]
[TimeControl "40/5400+30:900+30"]

1. e4 {[%emt 1:31:00]} e5 {[%emt 0:01:33]} 2. Nf3 {[%emt 0:00:00]} Nc6 {[%emt 0:00:05]} 3. d4 {[%emt 0:00:00]} exd4 {[%emt 0:00:03]} 4. Nxd4 {[%emt 0:00:00]} Nf6 {[%emt 0:00:03]} 5. Nxc6 {[%emt 0:00:00]} bxc6 {[%emt 0:00:02]} 6. e5 {[%emt 0:00:00]} Qe7 {[%emt 0:00:02]} 7. Qe2 {[%emt 0:00:00]} Nd5 {[%emt 0:00:06]} 8. c4 {[%emt 0:00:00]} Ba6 {[%emt 0:00:02]} 9. b3 {[%emt 0:00:00]} g6 {[%emt 0:00:05]} 10. g3 {[%emt 0:00:00]} Bg7 {[%emt 0:00:04]} 11. Bb2 {[%emt 0:00:00]} O-O {[%emt 0:00:07]} 12. Bg2 {[%emt 0:00:00]} Rae8 {[%emt 0:00:19]} 13. O-O {[%emt 0:00:00]} Bxe5 {[%emt 0:00:03]} 14. Bxe5 {[%emt 0:00:00]} Qxe5 {[%emt 0:00:02]} 15. Qxe5 {[%emt 0:00:00]} Rxe5 {[%emt 0:00:01]} 16. cxd5 {[%emt 0:00:00]} Bxf1 {[%emt 0:00:03]} 17. Kxf1 {[%emt 0:00:00]} cxd5 {[%emt 0:00:03]} 18. Nc3 {[%emt 0:00:00]} c6 {[%emt 0:00:04]} 19. Rd1 {[%emt 0:00:00]} Rfe8 {[%emt 0:00:34]} 20. Bf3 {[%emt 0:00:00]} h5 {[%emt 0:00:16]} 21. h4 {[%emt 0:00:00]} Kg7 {[%emt 0:00:59]} 22. Ne2 {[%emt 0:00:00]} f6 {[%emt 0:00:34]} 23. Rd4 {[%emt 0:00:00]} Kh6 {[%emt 0:02:44]} 24. Rf4 {[%emt 0:00:00]} R5e6 {[%emt 0:02:29]} 25. Ra4 {[%emt 0:00:00]} g5 {[%emt 0:00:25]} 26. hxg5+ {[%emt 0:00:00]} fxg5 {[%emt 0:00:04]} 27. g4 {[%emt 0:00:00]} Rf6 {[%emt 0:05:13]} 28. Nd4 {[%emt 0:00:00]} a5 {[%emt 0:12:46]} 29. gxh5 {[%emt 0:00:00]} c5 {[%emt 0:03:57]} 30. Bxd5 {[%emt 0:00:00]} cxd4 {[%emt 0:00:08]} 31. Rxd4 {[%emt 0:00:00]} Rd6 {[%emt 0:01:48]} 32. Bf7 {[%emt 0:00:00]} Rxd4 {[%emt 0:00:05]} 33. Bxe8 {[%emt 0:00:00]} Rd2 {[%emt 0:00:07]} 34. a4 {[%emt 0:02:17]} Rd3 {[%emt 0:00:49]} 35. Bf7 {[%emt 0:01:07]} d5 {[%emt 0:00:09]} 36. Ke2 {[%emt 0:00:23]} Rxb3 {[%emt 0:00:04]} 37. Bxd5 {[%emt 0:00:06]} Ra3 {[%emt 0:00:05]} 38. Bc6 {[%emt 0:00:07]} Kxh5 {[%emt 0:00:05]} 0-1

[Event "Vojvodina Open 2024-A 2024"]
[Site "Novi Sad"]
[Date "2024.06.25"]
[Round "2.14"]
[White "Ashvath Mittal"]
[Black "Ilincic, Aleksa"]
[Result "1-0"]
[ECO "B12"]
[WhiteElo "1986"]
[BlackElo "2232"]
[Annotator "RC"]
[PlyCount "85"]
[EventDate "2024.06.03"]
[EventType "swiss"]
[EventCountry "SRB"]
[SourceTitle "playchess.com"]
[Source "ChessBase"]
[SourceQuality "1"]
[TimeControl "40/5400+30:900+30"]

1. e4 {[%emt 0:00:03]} c6 {[%emt 0:03:55]} 2. d4 {[%emt 0:00:02]} d5 {[%emt 0:00:15]} 3. e5 {[%emt 0:00:03]} c5 {[%emt 0:00:11]} 4. c3 {[%emt 0:00:01]} Nc6 {[%emt 0:00:20]} 5. Be2 {[%emt 0:00:04]} cxd4 {[%emt 0:02:55]} 6. cxd4 {[%emt 0:00:02]} Bf5 {[%emt 0:00:28]} 7. Nc3 {[%emt 0:00:15]} e6 {[%emt 0:00:08]} 8. Be3 {[%emt 0:01:46]} Nge7 {[%emt 0:04:36]} 9. g4 {[%emt 0:01:16]} Bg6 {[%emt 0:00:31]} 10. h4 {[%emt 0:01:05]} h5 {[%emt 0:00:30]} 11. Nb5 {[%emt 0:13:28]} Nc8 {[%emt 0:01:00]} 12. gxh5 {[%emt 0:00:36]} Be4 {[%emt 0:03:20]} 13. Rh3 {[%emt 0:09:01]} a6 {[%emt 0:01:49]} 14. Nc3 {[%emt 0:00:35]} Bf5 {[%emt 0:01:09]} 15. Bg4 {[%emt 0:03:18]} Bh7 {[%emt 0:06:38]} 16. a3 {[%emt 0:01:45]} Nb6 {[%emt 0:04:51]} 17. Nf3 {[%emt 0:16:55]} Nc4 {[%emt 0:00:56]} 18. Bc1 {[%emt 0:00:41]} Qb6 {[%emt 0:07:54]} 19. Ra2 {[%emt 0:06:58]} O-O-O {[%emt 0:11:27]} 20. b3 {[%emt 0:05:36]} N4a5 {[%emt 0:06:06]} 21. b4 {[%emt 0:02:27]} Nc4 {[%emt 0:09:13]} 22. Ng5 {[%emt 0:02:01]} Bg8 {[%emt 0:07:04]} 23. Be3 {[%emt 0:05:41]} a5 {[%emt 0:08:37]} 24. b5 {[%emt 0:02:55]} Na7 {[%emt 0:05:10]} 25. Qb3 {[%emt 0:01:03]} Kb8 {[%emt 0:02:52]} 26. Rf3 {[%emt 0:04:07]} f6 {[%emt 0:01:53]} 27. exf6 {[%emt 0:01:31]} gxf6 {[%emt 0:00:07]} 28. Rxf6 {[%emt 0:01:20]} Bg7 {[%emt 0:00:28]} 29. Rg6 {[%emt 0:03:47]} Bxd4 {[%emt 0:00:46]} 30. Bxe6 {[%emt 0:01:45]} Bxe3 {[%emt 0:01:04]} 31. Nxd5 {[%emt 0:00:25]} Bd2+ {[%emt 0:05:11]} 32. Rxd2 {[%emt 0:02:29]} Nxd2 {[%emt 0:00:05]} 33. Qg3+ {[%emt 0:00:26]} Qd6 {[%emt 0:00:11]} 34. Rxg8 {[%emt 0:00:32]} Qxg3 {[%emt 0:02:18]} 35. Rxd8+ {[%emt 0:00:03]} Rxd8 {[%emt 0:00:05]} 36. fxg3 {[%emt 0:00:04]} Nc4 {[%emt 0:01:13]} 37. Nf4 {[%emt 0:00:31]} Ne5 {[%emt 0:00:48]} 38. Ng6 {[%emt 0:00:25]} Nd3+ {[%emt 0:00:40]} 39. Kf1 {[%emt 0:00:12]} Nxb5 {[%emt 0:01:37]} 40. h6 {[%emt 0:00:00]} Nxa3 {[%emt 0:00:00]} 41. h7 {[%emt 0:00:33]} Nc2 {[%emt 0:01:17]} 42. Bg8 {[%emt 0:00:14]} Re8 {[%emt 0:00:49]} 43. Ne6 {[%emt 0:01:16]} 1-0